bitfinex/quotes_ETHUSD_20250414
["timestamp","ask_amount","ask_price","bid_price","bid_amount"]
[1744662370946,6.13767,1629.3,1629.1,1e-05]
[1744662371460,12.27555,1629.3,1629.1,1e-05]
[1744662371679,6.13798,1629.2,1629.1,1e-05]
[1744662371982,7.742455,1629.3,1629.1,1e-05]
[1744662372480,0.7751,1629.4,1629.1,1e-05]
[1744662372684,12.27558,1629.3,1629.1,1e-05]
[1744662372981,6.13798,1629.2,1629.1,1e-05]
[1744662376852,6.13772,1629.3,1629.1,1e-05]
[1744662377161,0.7751,1629.4,1629.1,1e-05]
[1744662377162,11.6313,1629.4,1629.1,1e-05]
[1744662377369,4.01130203,1629.6,1629.2,6.13788]
[1744662377370,6.13694,1629.5,1629.2,6.13788]
[1744662377572,12.27405,1629.5,1629.2,0.8156]
[1744662377761,3.0,1629.7,1629.2,0.8156]
[1744662378099,6.13672,1629.6,1629.3,6.13751]
[1744662378312,12.27341,1629.6,1629.2,6.95338]
[1744662378463,6.13686,1629.5,1629.2,1.87527214]
[1744662378668,12.27391,1629.5,1629.2,8.01309214]
[1744662378966,3.0,1629.7,1629.1,1e-05]
[1744662378967,6.1376,1629.3,1629.1,1e-05]
[1744662379162,12.27535,1629.3,1629.1,1e-05]
[1744662379408,6.13798,1629.2,1629.1,1e-05]
[1744662380589,11.63198,1629.2,1629.1,1e-05]
[1744662380792,14.022716,1629.2,1629.1,1e-05]
[1744662384205,0.7517,1629.6,1629.1,0.80431]
[1744662384394,6.88817,1629.6,1629.1,3.79355186]
[1744662384569,12.27385,1629.5,1629.2,6.13796]
[1744662384770,6.13685,1629.5,1629.2,6.13796]
[1744662384971,12.27386,1629.5,1629.3,0.613796]
[1744662385414,6.13685,1629.5,1629.3,0.613796]
[1744662385711,11.63158,1629.6,1629.3,6.751386]
[1744662385919,11.63074,1629.8,1629.4,0.8043]
[1744662386076,6.13621,1629.7,1629.4,6.94147]
[1744662386275,6.13621,1629.7,1629.4,7.99592079]
[1744662386475,6.13685,1629.5,1629.2,0.8043]
[1744662386688,6.13662,1629.6,1629.2,13.07989]
[1744662386904,12.27244,1629.7,1629.3,9.12673186]
[1744662387069,5.495,1629.8,1629.6,6.13643]
[1744662387272,6.88674,1630.0,1629.5,0.8043]
[1744662387273,6.13622,1629.7,1629.5,0.8043]
[1744662388598,6.13647,1629.6,1629.5,0.8043]
[1744662388912,5.495,1629.9,1629.6,6.13637]
[1744662389109,11.6305,1629.9,1629.5,6.94112]
[1744662389407,17.76609,1629.9,1629.6,6.13645]
[1744662389613,6.13572,1629.8,1629.5,7.635142]
[1744662390314,12.27163,1629.8,1629.5,7.635142]
[1744662390608,5.495,1629.9,1629.5,0.8043]
[1744662391320,6.13611,1629.7,1629.5,0.8043]
[1744662391482,11.63037,1629.9,1629.5,6.94109]
[1744662391678,6.13609,1629.7,1629.1,1e-05]
[1744662391914,6.13739,1629.4,1629.1,1e-05]
[1744662392078,6.13785,1629.3,1629.1,1e-05]
[1744662392409,6.13781,1629.3,1629.1,1e-05]
[1744662392820,6.13728,1629.4,1629.1,1e-05]
[1744662393027,6.1376,1629.3,1629.1,1e-05]
[1744662394128,6.13762,1629.3,1629.1,1e-05]
[1744662394432,6.13798,1629.2,1629.1,1e-05]
[1744662394590,7.36554,1629.2,1629.1,1e-05]
[1744662394798,8.19654,1629.2,1629.1,1e-05]
[1744662395906,6.325,1629.5,1629.1,1e-05]
[1744662396207,6.13798,1629.2,1629.1,1e-05]
[1744662397323,12.41158,1629.2,1629.1,1e-05]
[1744662399331,6.91758,1629.2,1629.1,1e-05]
[1744662399529,12.41258,1629.2,1629.1,1e-05]
[1744662399734,14.881393,1629.2,1629.1,1e-05]
[1744662399944,12.936393,1629.2,1629.1,1e-05]
[1744662400091,12.386393,1629.2,1629.1,1e-05]
[1744662400924,9.386393,1629.2,1629.1,1e-05]
[1744662401626,6.13798,1629.2,1629.1,1e-05]
[1744662402036,10.49068,1629.2,1629.1,1e-05]
[1744662404310,10.96007714,1629.2,1629.1,1e-05]
[1744662404511,9.94068,1629.2,1629.1,1e-05]
[1744662404845,15.45768,1629.2,1629.1,1e-05]
[1744662405001,18.231003,1629.2,1629.1,1e-05]
[1744662405397,12.714003,1629.2,1629.1,1e-05]
[1744662405598,18.231003,1629.2,1629.1,1e-05]
[1744662406399,12.714003,1629.2,1629.1,1e-05]
[1744662406707,2.773323,1629.2,1629.1,1e-05]
[1744662406906,11.65498,1629.2,1629.1,1e-05]
[1744662408416,6.13798,1629.2,1629.1,1e-05]
[1744662415555,13.13751514,1629.2,1629.1,1e-05]
[1744662415720,9.89765,1629.1,1629.0,5.4e-06]
[1744662415915,11.00210151,1629.1,1629.0,5.4e-06]
[1744662416121,11.76140151,1629.1,1629.0,5.4e-06]
[1744662416734,11.76140151,1629.1,1628.1,0.05]
[1744662416735,6.14175,1628.2,1628.1,0.05]
[1744662417033,9.51825,1628.2,1628.1,0.05]
[1744662417432,3.9265,1628.2,1627.5,0.7661]
[1744662417633,9.51825,1628.2,1627.5,6.14431]
[1744662417836,6.14329,1627.8,1627.5,0.7587]
[1744662418055,7.093985,1628.1,1627.5,0.7587]
[1744662418256,6.14417,1627.6,1627.3,0.4021954]
[1744662418952,6.14417,1627.6,1627.3,6.5473354]
[1744662419336,6.14417,1627.6,1627.3,6.4973354]
[1744662419656,11.66101,1627.9,1627.5,6.14413]
[1744662419857,5.518,1627.9,1627.4,0.7587]
[1744662420158,5.518,1627.9,1627.4,6.90334]
[1744662420345,6.14351,1627.8,1627.4,6.90331]
[1744662420657,5.518,1627.9,1627.7,6.14333]
[1744662420837,6.14219,1628.1,1627.8,6.90182]
[1744662421039,12.28462,1628.1,1627.8,0.7587]
[1744662421379,6.14288,1627.9,1627.8,0.7587]
[1744662421560,6.14212,1628.1,1627.6,0.8202]
[1744662421772,6.1435,1627.8,1627.6,0.8202]
[1744662422461,6.143,1627.9,1627.6,0.8202]
[1744662422665,9.14175,1628.2,1627.6,0.8202]
[1744662422666,6.14355,1627.8,1627.6,0.8202]
[1744662422871,6.14295,1627.9,1627.6,0.8202]
[1744662423068,7.371502,1627.9,1627.6,0.8202]
[1744662423370,6.14295,1627.9,1627.6,0.8202]
[1744662423876,6.14254,1628.0,1627.6,6.96415]
[1744662424166,6.14219,1628.1,1627.7,6.14355]
[1744662424370,5.519,1628.3,1627.8,0.7957]
[1744662424548,11.66042,1628.3,1627.9,12.28574]
[1744662424742,17.80198,1628.3,1627.9,12.28574]
[1744662424947,17.80197,1628.3,1627.9,6.14287]
[1744662425145,6.14177,1628.2,1627.8,6.93895]
[1744662425347,6.14275,1628.0,1627.8,0.7957]
[1744662425550,6.14288,1627.9,1627.8,0.7957]
[1744662426272,6.14363,1627.7,1627.6,0.7957]
[1744662426437,6.14363,1627.7,1627.3,0.3521954]
[1744662426438,1.228706,1627.7,1627.3,0.3521954]
[1744662426635,6.14439,1627.5,1627.3,0.3521954]
[1744662427078,6.92004,1628.1,1627.4,0.84435104]
[1744662427382,5.52,1628.2,1627.8,6.14326]
[1744662427575,5.52,1628.2,1628.0,0.7829]
[1744662428179,1.20667987,1628.6,1628.1,6.14187]
[1744662428372,6.14115,1628.4,1628.0,0.7829]
[1744662428579,6.14115,1628.4,1628.0,6.92507]
[1744662428783,6.14069,1628.5,1628.1,6.14198]
[1744662428965,6.14122,1628.4,1628.0,6.92511]
[1744662429161,6.14157,1628.3,1628.0,6.92511]
[1744662430280,6.14099,1628.4,1628.0,6.92511]
[1744662430456,6.14099,1628.4,1628.1,6.14196]
[1744662432177,12.2823,1628.4,1628.0,13.06749]
[1744662432383,6.14137,1628.3,1628.0,8.231859]
[1744662432880,12.2823,1628.4,1628.0,8.231859]
[1744662433079,12.2823,1628.4,1628.0,14.374209]
[1744662433482,12.2823,1628.4,1628.0,8.231859]
[1744662433905,12.2823,1628.4,1628.0,14.374219]
[1744662434089,0.7685,1628.3,1627.6,0.7875]
[1744662434269,12.28382,1628.2,1627.8,6.14308]
[1744662434472,6.14175,1628.2,1627.8,12.28622]
[1744662434849,0.7685,1628.3,1627.7,6.93109]
[1744662435155,6.14263,1628.0,1627.7,1.79123177]
[1744662435360,6.1429,1627.9,1627.7,1.79123177]
[1744662435770,6.1429,1627.9,1627.7,0.7875]
[1744662436782,6.14461,1627.5,1627.3,0.3521954]
[1744662437013,6.14437,1627.6,1627.3,0.3521954]
[1744662437148,12.28858,1627.6,1627.3,6.4972954]
[1744662437504,11.75943,1627.8,1627.5,6.14423]
[1744662437714,6.14319,1627.9,1627.5,0.754]
[1744662437999,6.14312,1627.9,1627.5,6.89837]
[1744662438204,6.14332,1627.8,1627.5,0.754]
[1744662438411,6.14332,1627.8,1627.3,1.1694954]
[1744662438412,6.14451,1627.5,1627.3,1.1694954]
[1744662438718,12.28829,1627.6,1627.3,1.1694954]
[1744662438998,6.14453,1627.5,1627.3,1.1694954]
[1744662439187,12.2891,1627.5,1627.3,1.1694954]
[1744662439392,6.14477,1627.4,1627.3,0.3521954]
[1744662439701,6.96297,1627.4,1627.3,0.3521954]
[1744662439856,6.69552,1627.2,1627.1,0.05]
[1744662440057,9.80174771,1627.2,1627.1,0.05]
[1744662440275,6.69552,1627.2,1627.1,0.05]
[1744662440462,6.14552,1627.2,1627.1,0.05]
[1744662440862,6.69552,1627.2,1627.1,0.05]
[1744662441062,8.7455847,1627.2,1627.1,0.05]
[1744662441257,9.5620847,1627.2,1627.1,0.05]
[1744662442704,2.0500647,1627.2,1627.1,0.05]
[1744662442910,6.97496,1627.6,1627.1,0.05]
[1744662443068,6.14552,1627.2,1627.1,0.05]
[1744662443272,6.97632,1627.2,1627.1,0.05]
[1744662443619,7.52632,1627.2,1627.1,0.05]
[1744662443778,10.069814,1627.2,1627.1,0.05]
[1744662443956,13.069814,1627.2,1627.1,0.05]
[1744662444412,13.069814,1627.2,1627.1,1e-05]
[1744662444574,6.14897,1626.3,1626.1,0.05]
[1744662444904,6.1493,1626.2,1626.1,0.05]
[1744662445109,6.97955,1626.4,1626.1,0.05]
[1744662445312,6.14906,1626.3,1626.1,0.05]
[1744662445677,6.14861,1626.4,1626.1,0.05]
[1744662445879,11.76684,1626.6,1626.2,0.828]
[1744662446109,11.7669,1626.6,1626.3,6.14861]
[1744662446307,6.14836,1626.5,1626.2,0.828]
[1744662446686,6.14835,1626.5,1626.2,6.97715]
[1744662446898,12.29684,1626.5,1626.2,0.828]
[1744662447279,6.14785,1626.6,1626.2,0.828]
[1744662447479,6.14828,1626.5,1626.2,6.97714]
[1744662447676,3.0,1626.3,1626.1,0.05]
[1744662447878,9.6993,1626.2,1626.1,0.05]
[1744662448596,6.1493,1626.2,1626.1,0.05]
[1744662448799,7.929139,1626.2,1626.1,0.05]
[1744662449405,1.229839,1626.2,1626.1,0.05]
[1744662449724,6.1493,1626.2,1626.1,0.05]
[1744662450521,6.6993,1626.2,1626.1,0.05]
[1744662450722,7.4704,1626.2,1626.1,0.05]
[1744662452518,12.29822,1626.3,1626.1,0.05]
[1744662452725,6.14904,1626.3,1626.1,0.05]
[1744662452933,18.15426,1626.4,1626.1,0.05]
[1744662453137,0.30526614,1627.3,1626.1,0.05]
[1744662453138,0.8025,1626.9,1626.2,0.8211]
[1744662453288,6.14693,1626.9,1626.5,6.148]
[1744662453642,6.14783,1626.6,1626.3,6.1488]
[1744662453789,6.14672,1626.9,1626.5,6.14797]
[1744662453993,9.76672771,1627.1,1626.2,6.97037]
[1744662453994,6.14725,1626.8,1626.3,6.14868]
[1744662454324,6.14668,1626.9,1626.5,6.14808]
[1744662454513,6.6605,1627.1,1626.7,6.14715]
[1744662454828,6.6605,1627.1,1626.6,0.7826]
[1744662454829,6.6605,1627.1,1626.6,6.93024]
[1744662455030,12.00416,1627.1,1626.7,6.14736]
[1744662455198,12.0041,1627.1,1626.7,6.14736]
[1744662455541,6.1461,1627.1,1626.7,7.45501]
[1744662455713,5.859,1627.3,1627.1,6.14574]
[1744662455883,5.859,1627.3,1627.0,0.7888]
[1744662455884,6.14554,1627.2,1627.0,0.7888]
[1744662456290,47.924,1627.5,1627.1,6.14586]
[1744662456587,54.0687,1627.5,1627.2,6.14547]
[1744662456787,12.00203,1627.6,1627.3,6.14511]
[1744662457199,12.00203,1627.6,1627.2,7.374513]
[1744662457438,6.14439,1627.5,1627.2,6.14538]
[1744662457738,12.00203,1627.6,1627.2,6.14535]
[1744662457888,12.28925,1627.5,1627.1,6.14588]
[1744662458287,6.14501,1627.4,1627.0,6.9349]
[1744662458696,6.14501,1627.4,1627.1,6.14576]
[1744662460224,5.858,1627.6,1627.3,6.14481]
[1744662460399,12.00214,1627.6,1627.3,6.14481]
[1744662460603,5.858,1627.6,1627.3,6.14499]
[1744662460823,6.14452,1627.5,1627.2,6.14546]
[1744662461008,12.2891,1627.5,1627.2,6.14546]
[1744662461438,6.14452,1627.5,1627.2,6.14546]
[1744662461992,12.28909,1627.5,1627.2,6.14546]
[1744662462215,6.14497,1627.4,1627.1,6.14565]
[1744662462416,7.959189,1627.5,1627.1,12.29142]
[1744662462737,14.103759,1627.5,1627.1,12.29142]
[1744662463394,6.14494,1627.4,1627.0,6.93498]
[1744662463598,12.28997,1627.4,1627.0,13.08113]
[1744662463811,6.14494,1627.4,1627.1,6.14583]
[1744662464829,6.14494,1627.4,1627.1,12.29158]
[1744662464989,6.14494,1627.4,1627.1,6.14575]
[1744662465508,6.14494,1627.4,1627.1,12.29153]
[1744662465694,6.14492,1627.4,1627.1,6.14575]
[1744662465895,12.28995,1627.4,1627.1,6.14575]
[1744662466123,6.14492,1627.4,1627.1,6.14575]
[1744662466507,1.228938,1627.4,1627.0,6.93497]
[1744662466843,6.14439,1627.5,1627.0,6.93496]
[1744662466844,6.14528,1627.3,1627.0,6.93496]
[1744662466995,6.14552,1627.2,1627.0,0.7888]
[1744662467831,6.1459,1627.1,1627.0,0.7888]
[1744662468016,6.1459,1627.1,1626.8,6.92488]
[1744662468218,6.1459,1627.1,1626.8,13.07179]
[1744662468412,6.1459,1627.1,1626.8,6.92481]
[1744662468620,6.1459,1627.1,1626.8,13.07174]
[1744662468943,6.14524,1627.3,1626.9,6.1466]
[1744662469235,13.18143945,1627.3,1626.9,6.14656]
[1744662469535,12.29134,1627.2,1626.8,13.07188]
[1744662469706,12.29134,1627.2,1626.8,6.92489]
[1744662469910,13.18128945,1627.3,1627.0,6.14625]
[1744662470120,13.18128945,1627.3,1626.9,6.14655]
[1744662470321,6.14553,1627.2,1626.9,12.29311]
[1744662470528,6.146,1627.1,1626.8,6.9248]
[1744662470897,6.14665,1626.9,1626.4,0.7912]
[1744662471119,6.14797,1626.6,1626.1,0.8392]
[1744662471320,6.14894,1626.3,1626.1,0.8392]
[1744662471714,6.1493,1626.2,1626.1,0.8392]
[1744662472319,6.1493,1626.2,1626.1,0.05]
[1744662472714,6.14894,1626.3,1626.1,0.05]
[1744662472932,6.14896,1626.3,1626.1,0.05]
[1744662473112,6.14863,1626.4,1626.1,6.19967]
[1744662473623,12.29741,1626.4,1626.1,0.05]
[1744662473932,3.0,1626.6,1626.1,0.05]
[1744662474139,12.29734,1626.4,1626.1,6.19953]
[1744662474497,12.29734,1626.4,1626.1,0.05]
[1744662474704,6.14898,1626.3,1626.1,0.05]
[1744662475206,12.29808,1626.3,1626.1,0.05]
[1744662475413,6.1493,1626.2,1626.1,0.05]
[1744662476653,7.087734,1626.4,1626.1,0.05]
[1744662476812,5.858,1626.4,1626.1,0.05]
[1744662477013,12.29814,1626.3,1626.1,0.05]
[1744662477244,12.29816,1626.3,1626.1,0.05]
[1744662477410,6.14905,1626.3,1626.1,0.05]
[1744662477771,12.2983,1626.3,1626.1,0.05]
[1744662477967,12.29835,1626.3,1626.1,0.05]
[1744662478274,6.1493,1626.2,1626.1,0.05]
[1744662478773,6.9567,1626.2,1626.1,0.05]
[1744662479451,7.5067,1626.2,1626.1,0.05]
[1744662481345,6.9567,1626.2,1626.1,0.05]
[1744662481928,6.1493,1626.2,1626.1,0.05]
[1744662482125,7.964685,1626.3,1626.1,0.05]
[1744662482746,1.815635,1626.3,1626.1,0.05]
[1744662482953,6.1493,1626.2,1626.1,0.05]
[1744662486586,6.6993,1626.2,1626.1,0.05]
[1744662486886,6.1493,1626.2,1626.1,0.05]
[1744662489788,6.6993,1626.2,1626.1,0.05]
[1744662491059,6.14,1626.3,1626.2,6.1493]
[1744662491365,6.14,1626.3,1626.1,6.19949]
[1744662491604,12.29743,1626.4,1626.1,6.19949]
[1744662491903,6.14,1626.6,1626.2,0.7848]
[1744662492057,18.93698,1627.0,1626.5,0.7848]
[1744662492251,6.14678,1626.9,1626.6,6.14755]
[1744662492488,6.14666,1626.9,1626.6,12.29535]
[1744662492667,6.14666,1626.9,1626.6,12.29534]
[1744662492871,6.14666,1626.9,1626.6,12.29533]
[1744662493086,5.885,1627.0,1626.6,7.455643]
[1744662493402,6.14719,1626.8,1626.5,0.7848]
[1744662493603,6.14719,1626.8,1626.5,6.93285]
[1744662494100,6.14673,1626.9,1626.6,6.14778]
[1744662494401,6.14673,1626.9,1626.5,13.08089]
[1744662494719,6.14765,1626.7,1626.5,0.7848]
[1744662495068,6.14708,1626.8,1626.5,0.7848]
[1744662495299,13.489903,1626.9,1626.5,6.93289]
[1744662495599,19.636813,1626.9,1626.6,6.14767]
[1744662495803,4.3072,1626.8,1626.2,0.779]
[1744662495961,6.14806,1626.6,1626.3,6.1489]
[1744662496702,6.14786,1626.6,1626.2,13.07732]
[1744662496862,6.14786,1626.6,1626.3,12.2977]
[1744662497063,6.14786,1626.6,1626.3,6.14882]
[1744662497305,6.14786,1626.6,1626.3,12.29763]
[1744662497608,12.72592,1626.7,1626.3,12.29763]
[1744662497907,12.72574,1626.7,1626.3,12.2977]
[1744662498115,6.90439,1626.8,1626.5,6.14791]
[1744662498265,6.14714,1626.8,1626.5,6.14791]
[1744662498465,12.29443,1626.8,1626.4,12.29689]
[1744662498690,6.14714,1626.8,1626.5,6.14812]
[1744662499110,12.29436,1626.8,1626.5,6.14812]
[1744662499264,12.29443,1626.8,1626.5,6.14812]
[1744662499466,6.14714,1626.8,1626.5,6.14812]
[1744662499681,13.489893,1626.9,1626.6,6.14774]
[1744662500010,6.14717,1626.8,1626.5,13.11669]
[1744662500166,6.14717,1626.8,1626.5,6.96863]
[1744662500359,1.9637073,1626.8,1626.3,0.8206]
[1744662500610,7.343173,1626.9,1626.1,6.96814]
[1744662500611,12.29734,1626.4,1626.1,6.96814]
[1744662500908,6.14817,1626.5,1626.1,0.8186]
[1744662501072,6.14917,1626.3,1626.1,0.8186]
[1744662501471,6.9821,1626.2,1626.1,0.05]
[1744662501670,8.910137,1626.2,1626.1,0.05]
[1744662501987,2.760837,1626.2,1626.1,0.05]
[1744662502184,8.077337,1626.2,1626.1,0.05]
[1744662502387,1.928037,1626.2,1626.1,0.05]
[1744662502601,6.14908,1626.3,1626.1,0.05]
[1744662502769,12.28872,1626.4,1626.1,0.05]
[1744662502968,6.14,1626.4,1626.2,0.8133]
[1744662503208,6.14779,1626.6,1626.3,6.14892]
[1744662503499,6.762569,1626.6,1626.3,6.14892]
[1744662503699,6.14779,1626.6,1626.3,6.14892]
[1744662503896,15.29442,1626.8,1626.4,6.14834]
[1744662504103,6.14744,1626.7,1626.4,12.29678]
[1744662504703,18.92493,1626.9,1626.6,6.14765]
[1744662504916,5.884,1626.9,1626.5,0.7762]
[1744662505083,6.14705,1626.8,1626.5,13.07214]
[1744662505290,6.14677,1626.9,1626.6,6.14778]
[1744662505479,12.2936,1626.9,1626.6,6.14778]
[1744662505808,6.14756,1626.7,1626.3,0.7762]
[1744662506104,6.14711,1626.8,1626.4,12.2968]
[1744662506407,6.14711,1626.8,1626.5,6.1481]
[1744662506703,6.14669,1626.9,1626.6,12.29558]
[1744662506871,6.14669,1626.9,1626.6,6.14764]
[1744662507072,12.29355,1626.9,1626.5,13.525889]
[1744662508006,6.14704,1626.8,1626.5,1.229649]
[1744662508308,6.14674,1626.9,1626.5,12.29612]
[1744662508483,12.29355,1626.9,1626.5,12.29612]
[1744662510317,6.14704,1626.8,1626.5,6.14806]
[1744662510481,12.29437,1626.8,1626.5,6.14806]
[1744662510886,6.14704,1626.8,1626.5,12.29612]
[1744662511071,6.14704,1626.8,1626.5,6.14806]
[1744662511669,6.14704,1626.8,1626.5,12.29613]
[1744662512840,6.14676,1626.9,1626.6,6.14778]
[1744662513229,12.29358,1626.9,1626.6,6.14778]
[1744662513528,9.14641,1627.0,1626.7,6.14737]
[1744662513728,9.14641,1627.0,1626.6,6.14774]
[1744662513729,12.29369,1626.9,1626.6,6.14768]
[1744662514045,6.14709,1626.8,1626.6,0.8223]
[1744662514234,6.14741,1626.7,1626.4,0.8223]
[1744662514412,6.14714,1626.8,1626.5,6.14805]
[1744662514729,12.29354,1626.9,1626.6,6.14768]
[1744662514893,12.29354,1626.9,1626.5,6.14805]
[1744662514894,6.14707,1626.8,1626.5,6.14805]
[1744662515304,14.872571,1627.0,1626.6,6.14742]
[1744662515500,14.872571,1627.0,1626.6,12.29497]
[1744662515801,6.14666,1626.9,1626.6,12.29497]
[1744662516112,6.14666,1626.9,1626.6,6.14742]
[1744662517141,6.14666,1626.9,1626.6,12.29509]
[1744662517938,8.726121,1627.0,1626.7,6.14724]
[1744662518140,0.6146,1627.1,1626.7,0.7779]
[1744662518345,6.14554,1627.2,1626.9,12.29314]
[1744662518544,16.06143,1627.3,1627.0,6.14614]
[1744662518707,6.14563,1627.2,1626.9,6.14652]
[1744662519103,6.14563,1627.2,1626.9,12.29304]
[1744662519298,6.14525,1627.3,1627.0,6.14616]
[1744662519536,6.14,1627.4,1627.1,6.1459]
[1744662519537,6.14487,1627.4,1627.1,6.1459]
[1744662519848,18.93425,1627.5,1627.1,12.29172]
[1744662520144,21.127675,1627.5,1627.2,6.14551]
[1744662521055,5.832,1627.5,1627.1,6.14585]
[1744662521207,6.14411,1627.6,1627.3,6.14504]
[1744662522253,12.28841,1627.6,1627.3,6.14504]
[1744662522457,6.14526,1627.3,1627.0,6.97068]
[1744662522654,6.14482,1627.4,1627.1,6.14587]
[1744662523239,6.14448,1627.5,1627.1,6.14556]
[1744662523553,6.14448,1627.5,1627.1,6.14577]
[1744662523752,6.14448,1627.5,1627.2,6.1454]
[1744662523956,6.14448,1627.5,1627.2,12.29079]
[1744662524359,6.14448,1627.5,1627.2,6.14528]
[1744662524743,12.28907,1627.5,1627.2,6.14528]
[1744662525059,12.28917,1627.5,1627.2,6.14528]
[1744662525415,6.14448,1627.5,1627.2,6.14528]
[1744662525921,12.28903,1627.5,1627.2,6.14528]
[1744662526122,6.1448,1627.4,1627.1,6.14578]
[1744662526319,6.1448,1627.4,1627.1,12.29156]
[1744662526516,6.1441,1627.6,1627.1,6.1459]
[1744662526757,6.14415,1627.6,1627.3,6.1451]
[1744662527061,6.14417,1627.6,1627.4,0.8206]
[1744662529644,12.28832,1627.6,1627.4,0.8206]
[1744662530544,3.0,1627.8,1627.1,9.97095886]
[1744662530727,6.14487,1627.4,1627.1,16.11675886]
[1744662530934,6.14487,1627.4,1627.1,17.72843475]
[1744662532233,12.28906,1627.5,1627.2,6.14543]
[1744662532739,0.7966,1627.6,1627.3,6.14506]
[1744662532740,6.14419,1627.6,1627.3,6.14506]
[1744662532953,6.14419,1627.6,1627.3,12.29009]
[1744662533163,6.14419,1627.6,1627.3,6.14503]
[1744662533330,6.14419,1627.6,1627.3,12.29007]
[1744662533528,6.14373,1627.7,1627.4,6.14466]
[1744662533731,6.14373,1627.7,1627.4,13.06871]
[1744662533954,6.14373,1627.7,1627.4,6.92405]
[1744662534269,12.2876,1627.7,1627.4,6.92405]
[1744662534567,12.28819,1627.6,1627.4,0.7794]
[1744662534774,12.28821,1627.6,1627.4,0.7794]
[1744662534968,6.14402,1627.6,1627.4,0.7794]
[1744662535269,12.28817,1627.6,1627.4,0.7794]
[1744662539975,12.28818,1627.6,1627.4,0.7794]
[1744662540482,6.14439,1627.5,1627.2,0.7848]
[1744662540681,6.14448,1627.5,1627.2,0.7848]
[1744662540848,12.28918,1627.5,1627.2,6.93022]
[1744662541044,6.14481,1627.4,1627.2,0.7848]
[1744662541385,12.28971,1627.4,1627.2,0.7848]
[1744662541881,12.28902,1627.5,1627.2,6.93028]
[1744662542042,6.1448,1627.4,1627.2,0.7848]
[1744662543000,12.28971,1627.4,1627.2,0.7848]
[1744662543294,0.614368,1627.6,1627.2,0.7848]
[1744662543502,6.14506,1627.4,1627.2,0.7848]
[1744662543655,12.29002,1627.4,1627.2,0.7848]
[1744662543850,6.14496,1627.4,1627.2,0.7848]
[1744662544058,6.14449,1627.5,1627.2,6.93028]
[1744662545109,6.14449,1627.5,1627.2,6.93021]
[1744662545254,6.962,1627.8,1627.3,3.00457886]
[1744662545459,6.14397,1627.7,1627.4,12.28902]
[1744662545753,6.14413,1627.6,1627.3,9.14942886]
[1744662545957,6.14413,1627.6,1627.3,15.29444886]
[1744662546156,12.28833,1627.6,1627.3,9.14942886]
[1744662546397,12.28838,1627.6,1627.3,10.75739475]
[1744662546762,6.14413,1627.6,1627.3,16.90242475]
[1744662547301,12.28838,1627.6,1627.3,10.75739475]
[1744662547484,12.28838,1627.6,1627.3,7.75281589]
[1744662547681,6.14413,1627.6,1627.3,7.75281589]
[1744662548193,12.28829,1627.6,1627.3,6.14485]
[1744662548562,6.14413,1627.6,1627.3,12.28987]
[1744662548996,12.28672,1627.8,1627.5,6.14438]
[1744662549186,12.28677,1627.8,1627.5,6.14438]
[1744662549383,3.0,1627.9,1627.4,6.90781]
[1744662549573,12.28751,1627.7,1627.4,6.90781]
[1744662549769,6.14375,1627.7,1627.4,6.90781]
[1744662549970,12.28754,1627.7,1627.4,6.90777]
[1744662550165,6.14375,1627.7,1627.4,0.7631]
[1744662550361,12.28903,1627.5,1627.2,6.97167]
[1744662550566,7.589055,1627.7,1627.2,0.8263]
[1744662550759,0.7821,1627.5,1626.9,12.29303]
[1744662550959,6.14565,1627.2,1627.0,4.0]
[1744662551194,12.29049,1627.3,1627.0,4.0]
[1744662551712,12.29057,1627.3,1627.0,6.14623]
[1744662552005,6.14517,1627.3,1627.0,12.29246]
[1744662552198,6.14484,1627.4,1627.1,6.14578]
[1744662552372,6.92653,1627.5,1627.1,6.14578]
[1744662552568,6.14485,1627.4,1627.1,12.29156]
[1744662552902,6.14616,1627.1,1626.8,0.7708]
[1744662553195,6.14606,1627.1,1626.8,6.91773]
[1744662553504,12.29218,1627.1,1626.8,6.91773]
[1744662553891,6.14606,1627.1,1626.8,13.06464]
[1744662554123,0.7821,1627.3,1626.9,6.14635]
[1744662554124,6.92733,1627.3,1626.9,6.14635]
[1744662554565,6.14553,1627.2,1626.9,6.14635]
[1744662554766,6.92733,1627.3,1626.9,6.14648]
[1744662555695,6.14565,1627.2,1626.9,12.293]
[1744662555866,6.14565,1627.2,1626.9,6.14648]
[1744662556066,6.14565,1627.2,1626.8,5.64944286]
[1744662556067,6.14597,1627.1,1626.8,8.791824]
[1744662556297,12.29205,1627.1,1626.8,0.7708]
[1744662556566,0.7821,1627.3,1626.6,4.23408786]
[1744662556567,6.14657,1627.0,1626.6,11.17622786]
[1744662556790,6.1467,1626.9,1626.6,17.32391786]
[1744662557191,13.11687,1627.0,1626.6,17.32391786]
[1744662557400,0.8237,1627.0,1626.7,6.1473]
[1744662557567,0.8237,1627.0,1626.8,6.14691]
[1744662557779,6.14603,1627.1,1626.8,12.29382]
[1744662559149,5.677,1627.3,1627.0,6.14602]
[1744662559319,0.7906,1627.4,1627.1,6.14568]
[1744662559527,6.93539,1627.4,1627.1,12.29148]
[1744662559887,6.93539,1627.4,1627.1,6.14568]
[1744662560297,6.14446,1627.5,1627.1,7.06067589]